bitfinex/quotes_ETHUSD_20250726
["timestamp","ask_amount","ask_price","bid_price","bid_amount"]
[1753505663632,1e-08,3752.3,3752.2,2.8771]
[1753505664325,1e-08,3752.3,3752.2,0.4521]
[1753505664531,1e-08,3752.3,3752.2,2.8761]
[1753505666534,1e-08,3752.3,3752.2,0.4521]
[1753505666695,1.69260001,3752.3,3752.2,2.424]
[1753505667431,1.20560001,3752.3,3752.2,2.424]
[1753505668829,0.43970001,3752.3,3752.2,2.424]
[1753505669595,1e-08,3752.3,3752.2,5.57800313]
[1753505669815,1e-08,3752.3,3752.2,2.9129]
[1753505671540,1e-08,3752.3,3752.2,0.4889]
[1753505671703,1e-08,3752.3,3752.2,5.57700313]
[1753505672830,1e-08,3752.3,3752.2,2.9119]
[1753505673335,1e-08,3752.3,3752.2,5.57700313]
[1753505674400,1e-08,3752.3,3752.2,3.15400313]
[1753505674604,1e-08,3752.3,3752.2,5.57600313]
[1753505676480,1e-08,3752.3,3752.2,2.9109]
[1753505677882,1e-08,3752.3,3752.2,5.57600313]
[1753505678368,1e-08,3752.3,3752.2,3.15400313]
[1753505678570,1e-08,3752.3,3752.2,5.57600313]
[1753505681070,1e-08,3752.3,3752.2,6.00690313]
[1753505681368,1e-08,3752.3,3752.2,6.70908303]
[1753505681573,1e-08,3752.3,3752.2,7.46558303]
[1753505681761,1e-08,3752.3,3752.2,7.59918303]
[1753505682137,1e-08,3752.3,3752.2,11.81378432]
[1753505684479,1e-08,3752.3,3752.2,11.81478432]
[1753505691818,1e-08,3752.3,3752.2,12.36478432]
[1753505696894,1e-08,3752.3,3752.2,15.36478432]
[1753505697118,1e-08,3752.7,3752.6,3.21481905]
[1753505697323,1e-08,3752.7,3752.6,14.67541147]
[1753505697638,1e-08,3752.7,3752.6,15.71786328]
[1753505704156,1e-08,3752.7,3752.6,15.71686328]
[1753505705123,1e-08,3752.7,3752.6,7.56576199]
[1753505705457,0.45480001,3752.7,3752.6,5.14576199]
[1753505705659,0.94180001,3752.7,3752.6,5.21841905]
[1753505706750,0.45480001,3752.7,3752.6,5.21841905]
[1753505707356,1e-08,3752.7,3752.6,9.43302034]
[1753505707545,1e-08,3752.7,3752.6,11.18352034]
[1753505708137,1e-08,3752.7,3752.6,11.73352034]
[1753505708336,1e-08,3752.7,3752.6,13.17336341]
[1753505710720,1e-08,3752.7,3752.6,13.36891945]
[1753505715853,1e-08,3752.7,3752.6,12.91651945]
[1753505718884,0.45910001,3752.7,3752.6,6.85281816]
[1753505719352,0.45910001,3752.7,3752.6,4.43381816]
[1753505719542,0.45910001,3752.7,3752.6,6.85281816]
[1753505720476,0.45910001,3752.7,3752.6,4.43481816]
[1753505720679,0.45910001,3752.7,3752.6,5.44062328]
[1753505720886,0.45910001,3752.7,3752.6,9.65522457]
[1753505721053,0.45910001,3752.7,3752.6,9.62857638]
[1753505722154,0.45910001,3752.7,3752.6,7.20957638]
[1753505722354,0.45910001,3752.7,3752.6,9.62857638]
[1753505722567,1e-08,3752.7,3752.6,10.22329469]
[1753505724354,1e-08,3752.7,3752.6,7.80429469]
[1753505724555,1e-08,3752.7,3752.6,10.69159469]
[1753505726398,1e-08,3752.7,3752.6,10.77329469]
[1753505726604,1e-08,3752.7,3752.6,15.44679469]
[1753505726890,1e-08,3752.9,3752.8,6.96687704]
[1753505727091,1e-08,3752.9,3752.8,9.38587704]
[1753505727279,1e-08,3752.9,3752.8,10.44077704]
[1753505728467,1e-08,3753.5,3753.1,0.55]
[1753505728671,1e-08,3753.5,3753.4,7.76465236]
[1753505728868,1e-08,3753.5,3753.4,13.18465236]
[1753505729090,1e-08,3753.5,3753.4,14.10595236]
[1753505730491,1e-08,3753.5,3753.4,13.18465236]
[1753505730693,1e-08,3753.5,3753.4,13.65295236]
[1753505731000,1e-08,3753.5,3753.4,15.44713225]
[1753505731566,1e-08,3753.5,3753.4,13.02713225]
[1753505731766,1e-08,3753.5,3753.4,15.44613225]
[1753505732699,1e-08,3753.5,3753.4,15.89913225]
[1753505733282,1e-08,3753.5,3753.4,15.44613225]
[1753505735091,1e-08,3753.5,3753.4,11.23153096]
[1753505735290,1e-08,3753.5,3753.4,15.44613225]
[1753505735492,1e-08,3753.5,3753.4,15.89913225]
[1753505736596,1e-08,3753.5,3753.4,16.44913225]
[1753505738779,1e-08,3753.5,3753.4,12.35663225]
[1753505738977,0.45910001,3753.5,3753.4,14.77463225]
[1753505739492,1e-08,3753.5,3753.4,15.24293225]
[1753505741984,1e-08,3753.5,3753.4,15.69593225]
[1753505742206,1e-08,3753.5,3753.4,15.24293225]
[1753505742408,1e-08,3753.5,3753.4,19.07993225]
[1753505744811,0.45910001,3753.5,3753.4,18.61163225]
[1753505745379,1e-08,3753.5,3753.4,18.61163225]
[1753505745593,1e-08,3753.5,3753.4,16.19363225]
[1753505745887,1e-08,3753.5,3753.4,19.07993225]
[1753505750099,1e-08,3753.5,3753.4,18.61163225]
[1753505750100,0.46560001,3753.5,3753.4,18.61163225]
[1753505752938,1e-08,3753.5,3753.4,18.61163225]
[1753505753124,1e-08,3753.5,3753.4,19.07913225]
[1753505753615,1e-08,3753.5,3753.4,19.54823225]
[1753505754520,1e-08,3753.5,3753.4,15.71123225]
[1753505755711,1e-08,3753.5,3753.4,15.24213225]
[1753505758022,1e-08,3753.5,3753.4,15.37263924]
[1753505758223,1e-08,3753.5,3753.4,15.24213225]
[1753505759003,1e-08,3753.5,3753.4,12.82413225]
[1753505759224,1e-08,3753.5,3753.4,15.24213225]
[1753505759942,1e-08,3753.7,3753.6,2.66410912]
[1753505760130,1e-08,3753.7,3753.6,7.05451326]
[1753505760310,1e-08,3753.7,3753.6,7.65561326]
[1753505769421,1e-08,3753.7,3753.6,7.18811326]
[1753505770852,0.46560001,3753.7,3753.6,5.21570912]
[1753505771040,0.46560001,3753.7,3753.6,5.76570912]
[1753505771852,1e-08,3753.7,3753.6,6.23320912]
[1753505773918,1e-08,3753.7,3753.6,7.04890912]
[1753505774221,1e-08,3753.7,3753.6,7.51800912]
[1753505774450,1e-08,3753.7,3753.6,9.54019061]
[1753505779052,1e-08,3753.7,3753.6,9.07109061]
[1753505781262,1e-08,3753.7,3753.6,9.53059061]
[1753505782639,1e-08,3753.7,3753.6,9.07109061]
[1753505783168,1e-08,3753.7,3753.6,8.25539061]
[1753505784462,1e-08,3753.7,3753.6,5.83739061]
[1753505784765,1e-08,3753.7,3753.6,8.25539061]
[1753505785061,1e-08,3753.7,3753.6,2.99640446]
[1753505785260,0.92020001,3753.7,3753.6,5.41440446]
[1753505785767,0.92020001,3753.7,3753.6,5.41540446]
[1753505786132,1.67050001,3753.7,3753.6,5.41540446]
[1753505787033,1.67050001,3753.7,3753.6,0.001]
[1753505787250,1.83815001,3753.7,3753.6,2.419]
[1753505789744,1.83815001,3753.7,3753.6,0.001]
[1753505789944,1.83815001,3753.7,3753.6,2.419]
[1753505792940,1.97175001,3753.7,3753.6,2.419]
[1753505793979,4.63578815,3753.7,3753.6,2.419]
[1753505794276,1.97175001,3753.7,3753.6,2.419]
[1753505795657,4.63578815,3753.7,3753.6,2.419]
[1753505797095,7.63578815,3753.7,3753.6,2.419]
[1753505798481,7.63578815,3753.7,3753.6,0.001]
[1753505810157,10.05478815,3753.7,3753.6,0.001]
[1753505810598,10.19526262,3753.7,3753.6,0.001]
[1753505813004,10.05478815,3753.7,3753.6,0.001]
[1753505814273,10.19542509,3753.7,3753.6,0.001]
[1753505814783,10.4444274,3753.7,3753.6,0.001]
[1753505816717,10.9944274,3753.7,3753.6,0.001]
[1753505817679,11.13369776,3753.7,3753.6,0.001]
[1753505818221,5.66418009,3753.5,3753.4,0.001]
[1753505818421,13.45752063,3753.5,3753.4,0.001]
[1753505818574,3.43470603,3752.9,3752.8,0.001]
[1753505818768,8.98730603,3752.9,3752.8,0.001]
[1753505818977,9.93440603,3752.9,3752.8,0.001]
[1753505819713,10.62505789,3752.9,3752.8,1e-08]
[1753505820008,11.9978624,3752.9,3752.8,1e-08]
[1753505820208,10.62505789,3752.9,3752.8,1e-08]
[1753505821180,10.87417338,3752.9,3752.8,1e-08]
[1753505822526,9.92807338,3752.9,3752.8,1e-08]
[1753505822821,9.92786751,3752.9,3752.8,1e-08]
[1753505823322,11.30067202,3752.9,3752.8,1e-08]
[1753505823485,10.39116751,3752.9,3752.8,1e-08]
[1753505825129,6.95786751,3752.9,3752.8,1e-08]
[1753505825333,9.37786751,3752.9,3752.8,0.49780001]
[1753505826021,9.37786751,3752.9,3752.8,1e-08]
[1753505826418,9.84116751,3752.9,3752.8,1e-08]
[1753505828445,2.66481905,3752.6,3752.1,0.4988]
[1753505828592,5.66510313,3752.2,3752.1,0.001]
[1753505828796,5.79870313,3752.2,3752.1,0.4303]
[1753505829246,5.79870313,3752.2,3752.1,0.4988]
[1753505830012,5.79870313,3752.2,3752.1,0.001]
[1753505830013,6.26200313,3752.2,3752.1,0.001]
[1753505831502,5.79870313,3752.2,3752.1,0.001]
[1753505831702,5.9391623,3752.2,3752.1,0.001]
[1753505832895,6.07846848,3752.2,3752.1,0.001]
[1753505836060,6.54176848,3752.2,3752.1,0.001]
[1753505837317,6.5417534,3752.2,3752.1,0.001]
[1753505838716,6.5355534,3752.2,3752.1,0.001]
[1753505838921,6.9907534,3752.2,3752.1,0.001]
[1753505839231,8.02457761,3752.2,3752.1,0.001]
[1753505840348,8.02462025,3752.2,3752.1,0.001]
[1753505843680,7.00767416,3752.1,3752.0,0.001]
[1753505843887,5.66531623,3751.9,3751.8,0.001]
[1753505844053,8.21891623,3751.9,3751.8,0.001]
[1753505844450,5.79891623,3751.9,3751.8,0.9395]
[1753505844948,8.21991623,3751.9,3751.8,0.9395]
[1753505847054,5.79891623,3751.9,3751.8,0.9395]
[1753505847380,8.21991623,3751.9,3751.8,0.9395]
[1753505847768,5.79891623,3751.9,3751.8,0.9395]
[1753505848091,8.21991623,3751.9,3751.8,0.9395]
[1753505848576,8.36080509,3751.9,3751.8,0.9395]
[1753505848890,8.36080506,3751.9,3751.8,0.9395]
[1753505849180,5.93980506,3751.9,3751.8,0.9395]
[1753505849384,8.35980506,3751.9,3751.8,0.9395]
[1753505854690,8.35980506,3751.9,3751.8,0.001]
[1753505854878,8.60952182,3751.9,3751.8,0.001]
[1753505855189,9.06662182,3751.9,3751.8,0.001]
[1753505855759,8.60952182,3751.9,3751.8,0.001]
[1753505855954,8.60952182,3751.9,3751.8,0.4718]
[1753505856769,8.60952182,3751.9,3751.8,0.001]
[1753505856985,9.06662182,3751.9,3751.8,0.001]
[1753505857302,9.87212182,3751.9,3751.8,0.001]
[1753505858378,10.32732182,3751.9,3751.8,0.001]
[1753505860512,9.87212182,3751.9,3751.8,0.001]
[1753505861570,10.42212182,3751.9,3751.8,0.001]
[1753505861772,10.87732182,3751.9,3751.8,0.001]
[1753505865306,2.66552937,3751.6,3751.5,0.001]
[1753505865639,8.3600182,3751.6,3751.5,0.001]
[1753505865814,6.64683496,3751.6,3751.5,0.001]
[1753505865977,9.06683496,3751.6,3751.5,0.001]
[1753505866475,8.60973496,3751.6,3751.5,0.4718]
[1753505870187,8.60973496,3751.6,3751.5,0.001]
[1753505870377,9.07883496,3751.6,3751.5,0.001]
[1753505870581,9.21817242,3751.6,3751.5,0.001]
[1753505871088,8.74907242,3751.6,3751.5,0.001]
[1753505871290,8.74907242,3751.6,3751.5,0.4866]
[1753505872036,6.32907242,3751.6,3751.5,0.4866]
[1753505872235,8.74907242,3751.6,3751.5,0.4866]
[1753505872742,8.74902821,3751.6,3751.5,0.4866]
[1753505875531,8.74902821,3751.6,3751.5,0.001]
[1753505875910,9.21812821,3751.6,3751.5,0.001]
[1753505876418,8.74902821,3751.6,3751.5,0.001]
[1753505876619,8.74902821,3751.6,3751.5,0.4866]
[1753505877953,8.74879523,3751.6,3751.5,0.4866]
[1753505879032,8.74879523,3751.6,3751.5,0.001]
[1753505879235,9.21789523,3751.6,3751.5,0.001]
[1753505883908,8.74879523,3751.6,3751.5,0.001]
[1753505884121,8.74879523,3751.6,3751.5,0.4866]
[1753505886137,8.74879523,3751.6,3751.5,0.001]
[1753505888647,8.60795061,3751.6,3751.5,0.4866]
[1753505888811,8.74892733,3751.6,3751.5,0.4866]
[1753505890241,8.89881731,3751.6,3751.5,0.4866]
[1753505891565,8.89922745,3751.6,3751.5,0.4866]
[1753505894067,8.74933747,3751.6,3751.5,0.4866]
[1753505894468,8.89938233,3751.6,3751.5,0.4866]
[1753505896484,6.47938233,3751.6,3751.5,0.4866]
[1753505896782,8.89938233,3751.6,3751.5,0.4866]
[1753505899212,6.47938233,3751.6,3751.5,0.4866]
[1753505899505,8.74940718,3751.6,3751.5,0.926]
[1753505900372,8.7496076,3751.6,3751.5,0.926]
[1753505903275,8.74956079,3751.6,3751.5,0.926]
[1753505907482,8.74956079,3751.6,3751.5,0.4866]
[1753505911498,8.74956079,3751.6,3751.5,0.001]
[1753505911691,8.74956079,3751.6,3751.5,0.9224]
[1753505912596,6.32956079,3751.6,3751.5,0.483]
[1753505912798,8.74956079,3751.6,3751.5,0.9224]
[1753505918217,6.32956079,3751.6,3751.5,0.9224]
[1753505918886,8.74956079,3751.6,3751.5,0.9224]
[1753505920015,8.74956079,3751.6,3751.5,0.483]
[1753505920184,6.08403142,3751.6,3751.5,0.9224]
[1753505921006,8.74956079,3751.6,3751.5,0.9224]
[1753505921381,8.74950947,3751.6,3751.5,0.9224]
[1753505921582,6.0839801,3751.6,3751.5,0.9224]
[1753505922687,0.41399536,3751.6,3751.5,0.9224]
[1753505923016,5.5536,3751.6,3751.5,0.9224]
[1753505924321,5.5536,3751.6,3751.5,1.7227]
[1753505924691,3.1336,3751.6,3751.5,1.7227]
[1753505926602,0.002,3751.8,3751.7,2.66545832]
[1753505926813,0.002,3751.8,3751.7,3.49505832]
[1753505927000,0.002,3751.8,3751.7,4.41645832]
[1753505927524,0.002,3751.8,3751.7,0.8296]
[1753505927723,2.80098728,3751.8,3751.5,0.001]
[1753505927945,0.1336,3751.6,3751.5,0.4828]
[1753505928260,0.1336,3751.6,3751.5,0.001]
[1753505928436,0.1336,3751.6,3751.5,0.4508]
[1753505928602,0.1336,3751.6,3751.5,0.9326]
[1753505931718,0.1336,3751.6,3751.5,0.4828]
[1753505934921,0.002,3751.8,3751.6,0.8164]
[1753505935167,0.002,3751.8,3751.7,4.41345832]
[1753505936474,0.002,3751.8,3751.7,4.96345832]
[1753505937668,0.002,3751.8,3751.7,5.16269763]
[1753505937875,0.002,3751.8,3751.7,6.41212141]
[1753505938657,0.002,3751.9,3751.8,4.04858728]
[1753505938827,0.002,3751.9,3751.8,9.22570561]
[1753505939033,0.002,3751.9,3751.8,9.19905174]
[1753505944337,0.002,3751.9,3751.8,11.61705174]
[1753505944536,0.002,3751.9,3751.8,13.4986711]
[1753505944937,0.002,3751.9,3751.8,13.6322711]
[1753505948679,0.002,3751.9,3751.8,11.2142711]
[1753505948871,0.002,3751.9,3751.8,8.41360664]
[1753505949068,0.002,3751.9,3751.8,5.51380664]
[1753505949287,0.002,3751.9,3751.8,6.05018728]
[1753505949460,0.4377,3751.9,3751.8,6.05018728]
[1753505949852,0.4377,3751.9,3751.8,3.3848]
[1753505950086,0.4377,3751.9,3751.8,6.05018728]
[1753505951763,0.4377,3751.9,3751.8,3.63218728]
[1753505951965,0.4377,3751.9,3751.8,6.05018728]
[1753505952584,0.4377,3751.9,3751.8,3.63218728]
[1753505953099,0.4377,3751.9,3751.8,6.05018728]
[1753505953585,0.4377,3751.9,3751.5,0.8125]
[1753505953759,0.4569,3751.8,3751.6,2.5516]
[1753505954084,0.4357,3751.7,3751.6,2.5516]
[1753505955486,0.4357,3751.7,3751.6,0.1336]
[1753505955647,0.4357,3751.7,3751.6,2.5516]
[1753505956069,0.4357,3751.7,3751.5,0.001]
[1753505956274,0.4569,3751.8,3751.6,2.418]
[1753505956881,0.4569,3751.8,3751.7,2.418]
[1753505957365,0.8926,3751.8,3751.7,2.418]
[1753505958788,0.8926,3751.8,3751.6,0.001]
[1753505958962,0.4569,3751.8,3751.7,2.418]
[1753505959358,0.4569,3751.8,3751.6,0.001]
[1753505959558,0.4569,3751.8,3751.7,2.418]
[1753505960185,0.9087,3751.8,3751.7,2.418]
[1753505960487,0.9087,3751.8,3751.6,0.001]
[1753505960801,0.1356,3751.9,3751.7,2.418]
[1753505960984,0.1356,3751.9,3751.6,0.001]
[1753505961297,0.5916,3751.9,3751.8,2.418]
[1753505961867,1.0434,3751.9,3751.8,2.418]
[1753505962787,0.1356,3751.9,3751.8,2.418]
[1753505962992,1.8291,3751.9,3751.8,2.418]
[1753505965100,4.94384798,3751.9,3751.6,0.001]
[1753505965262,1.37072183,3751.9,3751.8,2.418]
[1753505965594,2.66539245,3751.8,3751.6,0.001]
[1753505965777,2.66539245,3751.8,3751.7,2.418]
[1753505965975,3.57319245,3751.8,3751.7,2.418]
[1753505966292,3.70679245,3751.8,3751.7,2.418]
[1753505968305,2.66545832,3751.7,3751.6,2.419]
[1753505968798,3.57325832,3751.7,3751.6,2.419]
[1753505969097,0.9078,3751.7,3751.6,2.419]
[1753505970177,3.57325832,3751.7,3751.6,0.001]
[1753505970598,7.61224581,3751.7,3751.6,0.001]
[1753505970807,8.06824581,3751.7,3751.6,0.001]
[1753505973989,4.49498749,3751.7,3751.6,0.001]
[1753505974178,3.0,3751.7,3751.6,0.4924]
[1753505975311,2.66539306,3751.8,3751.6,0.4924]
[1753505975618,2.66732377,3751.9,3751.6,0.4924]
[1753505975835,3.0,3751.8,3751.6,0.001]
[1753505976116,3.0,3751.8,3751.7,0.4914]
[1753505978830,0.002,3751.9,3751.7,0.4914]
[1753505979121,0.002,3751.9,3751.7,0.9367]
[1753505979623,0.002,3751.9,3751.8,0.4914]
[1753505979937,3.002,3751.9,3751.8,0.4914]
[1753505980510,3.002,3751.9,3751.6,0.4924]
[1753505980714,0.1336,3751.7,3751.6,0.001]
[1753505981425,0.1336,3751.7,3751.6,0.4924]
[1753505989542,0.1336,3751.7,3751.6,0.001]
[1753505989740,3.26795832,3751.7,3751.6,0.001]
[1753505990622,2.79905832,3751.7,3751.6,0.001]
[1753505991355,3.26795832,3751.7,3751.6,0.001]
[1753505997244,3.40900202,3751.7,3751.6,0.001]
[1753505998235,3.40901282,3751.7,3751.6,0.001]
[1753505999847,3.89393608,3751.7,3751.6,0.001]
[1753506000145,4.36283608,3751.7,3751.6,0.001]
[1753506000531,0.2746545,3751.7,3751.6,0.4811]
[1753506000921,0.1336,3751.7,3751.6,0.4811]
[1753506001744,0.002,3751.8,3751.6,1.7076]
[1753506001954,0.002,3751.8,3751.7,0.72096]
[1753506002156,0.002,3751.8,3751.7,1.63716]
[1753506002524,0.002,3751.8,3751.7,4.30261832]
[1753506002726,0.002,3751.8,3751.7,5.09301832]
[1753506004421,0.002,3751.8,3751.7,7.51101832]
[1753506012327,0.002,3751.8,3751.7,5.09301832]
[1753506012760,0.002,3751.8,3751.7,7.51101832]
[1753506014066,0.002,3751.8,3751.7,4.17681832]
[1753506014355,0.002,3751.8,3751.7,5.80441832]
[1753506015159,0.002,3751.8,3751.7,6.28451832]
[1753506021656,0.002,3751.8,3751.7,0.55]
[1753506021857,0.4578,3751.8,3751.7,2.968]
[1753506024339,0.4578,3751.8,3751.7,0.55]
[1753506024551,0.4578,3751.8,3751.7,2.968]
[1753506030997,0.002,3751.8,3751.7,3.4321]
[1753506031394,0.002,3751.8,3751.7,1.0141]
[1753506031702,0.002,3751.8,3751.7,3.4321]
[1753506033556,0.002,3751.8,3751.7,3.4311]
[1753506034304,0.002,3751.8,3751.7,2.968]
[1753506034596,0.002,3751.8,3751.7,2.967]
[1753506035719,0.002,3751.8,3751.6,0.1346]
[1753506035720,0.8198,3751.8,3751.6,0.1346]
[1753506035881,2.79905832,3751.7,3751.6,0.001]
[1753506036202,3.73135832,3751.7,3751.6,2.418]
[1753506036723,1.0659,3751.7,3751.6,0.001]
[1753506036867,1.0659,3751.7,3751.6,2.418]
[1753506037173,0.5894,3751.7,3751.6,2.418]
[1753506037780,3.25485832,3751.7,3751.6,2.418]
[1753506038800,0.002,3751.8,3751.7,0.55]
[1753506039015,0.002,3751.8,3751.7,1.4718]
[1753506043519,0.002,3751.8,3751.7,3.8888]
[1753506044315,0.002,3751.8,3751.7,1.0141]
[1753506044485,0.002,3751.8,3751.7,6.09655832]
[1753506044695,0.002,3751.8,3751.7,6.55425832]
[1753506045108,0.002,3751.8,3751.7,7.35305832]
[1753506048930,0.002,3751.8,3751.7,7.91088355]
[1753506049112,0.002,3751.8,3751.7,8.38528355]
[1753506049285,0.002,3751.8,3751.7,5.96828355]
[1753506049616,0.002,3751.8,3751.7,8.38528355]
[1753506052529,0.002,3751.8,3751.7,7.36975832]
[1753506052998,0.002,3751.8,3751.7,6.89535832]
[1753506054426,0.002,3751.8,3751.7,6.09655832]
[1753506060847,0.002,3751.8,3751.7,0.55]
[1753506061151,0.002,3751.8,3751.7,2.967]
[1753506061511,0.002,3751.8,3751.7,3.439]
[1753506062149,0.4636,3751.8,3751.7,2.967]
[1753506062653,1.7328,3751.8,3751.7,2.417]
[1753506062818,2.30641231,3751.8,3751.7,2.417]
[1753506063815,1.8664,3751.8,3751.7,2.417]
[1753506064021,1.4119,3751.8,3751.7,2.417]
[1753506065532,0.5972,3751.8,3751.7,2.417]
[1753506066557,1.0517,3751.8,3751.7,2.417]
[1753506068056,0.5972,3751.8,3751.7,2.417]
[1753506069154,0.1356,3751.8,3751.7,2.417]
[1753506069457,0.5972,3751.8,3751.7,2.417]
[1753506078577,0.1356,3751.8,3751.7,2.417]
[1753506078740,6.42285832,3751.7,3751.6,0.001]
[1753506078931,6.86875832,3751.7,3751.6,0.001]
[1753506079268,7.35575832,3751.7,3751.6,0.001]
[1753506082287,7.74636111,3751.7,3751.6,0.001]
[1753506083049,5.66567148,3751.4,3751.3,0.001]
[1753506083248,13.62203873,3751.4,3751.3,0.001]
[1753506083478,14.55493873,3751.4,3751.3,0.001]
[1753506084753,14.68760749,3751.4,3751.3,0.001]
[1753506085273,14.55493873,3751.4,3751.3,0.001]
[1753506085879,14.69119487,3751.4,3751.3,0.001]
[1753506086764,10.33607427,3751.4,3751.3,0.001]
[1753506089895,2.66588467,3751.1,3750.9,0.001]
[1753506090096,13.21544913,3751.1,3750.9,0.001]
[1753506090282,14.53895192,3751.1,3750.9,0.001]
[1753506090484,2.66602682,3750.9,3750.8,0.001]
[1753506090663,3.7923,3750.8,3750.7,0.001]
[1753506091013,5.66616898,3750.7,3750.6,1e-08]
[1753506091296,14.41048849,3750.7,3750.6,1e-08]
[1753506091666,14.55080139,3750.7,3750.6,1e-08]
[1753506092505,14.54957693,3750.7,3750.6,1e-08]
[1753506092659,5.66624006,3750.6,3750.5,1e-08]
[1753506092864,6.45875335,3750.3,3750.1,1e-08]
[1753506093083,13.4834324,3750.2,3750.1,1e-08]
[1753506093395,14.4163324,3750.2,3750.1,1e-08]
[1753506095395,6.8468754,3750.2,3750.1,1e-08]
[1753506095694,9.7107754,3750.2,3750.1,1e-08]
[1753506095894,10.1977754,3750.2,3750.1,1e-08]
[1753506096096,10.057821,3750.2,3750.1,1e-08]
[1753506097480,9.80972445,3750.2,3750.1,1e-08]
[1753506097682,10.05755642,3750.2,3750.1,1e-08]
[1753506097881,9.80972445,3750.2,3750.1,1e-08]
[1753506098392,10.05751518,3750.2,3750.1,1e-08]
[1753506099888,10.19689903,3750.2,3750.1,1e-08]
[1753506100103,10.33668273,3750.2,3750.1,1e-08]
[1753506101274,9.40378273,3750.2,3750.1,1e-08]
[1753506101479,9.84968273,3750.2,3750.1,1e-08]
[1753506102209,7.43168273,3750.2,3750.1,1e-08]
[1753506102384,6.84599903,3750.2,3750.1,0.45160001]
[1753506102583,8.47169903,3750.2,3750.1,0.92300001]
[1753506103896,8.47174567,3750.2,3750.1,0.92300001]
[1753506104097,8.47175375,3750.2,3750.1,0.92300001]
[1753506105313,6.05375375,3750.2,3750.1,0.92300001]
[1753506105625,8.47175375,3750.2,3750.1,0.92300001]
[1753506106821,8.47208386,3750.2,3750.1,0.92300001]
[1753506107494,8.47208386,3750.2,3750.1,0.45160001]
[1753506107820,8.61218189,3750.2,3750.1,0.45160001]
[1753506108227,13.28634635,3750.2,3750.1,1e-08]
[1753506108381,14.53004635,3750.2,3750.1,1e-08]
[1753506108587,14.05274635,3750.2,3750.1,1e-08]
[1753506109019,14.05474635,3750.2,3750.1,1e-08]
[1753506109619,2.66673777,3749.9,3749.8,0.29631601]
[1753506109836,5.21833777,3749.9,3749.8,0.29631601]
[1753506110005,5.60661136,3749.9,3749.8,0.29631601]
[1753506110504,2.6670934,3749.4,3749.3,0.001]
[1753506110703,2.8006934,3749.4,3749.3,0.001]
[1753506110905,2.8006934,3749.4,3749.3,0.4305]
[1753506111720,2.8006934,3749.4,3749.3,0.8842]
[1753506113014,0.1336,3749.4,3749.3,0.8842]
[1753506118227,0.1336,3749.4,3749.3,1.0543]
[1753506118429,0.1336,3749.4,3749.3,1.8325]
[1753506120426,0.1336,3749.4,3749.3,1.6624]
[1753506121343,2.8006934,3749.4,3749.3,0.4547]
[1753506121516,0.1336,3749.4,3749.3,0.4547]
[1753506122116,3.1336,3749.4,3749.3,0.4547]
[1753506122330,2.94156804,3749.4,3749.3,0.4547]
[1753506122614,0.1336,3749.4,3749.3,0.4547]
[1753506123046,5.8006934,3749.4,3749.3,0.4547]
[1753506123222,5.94156804,3749.4,3749.3,0.4547]
[1753506123644,5.94156804,3749.4,3749.3,0.001]
[1753506125945,6.19141843,3749.4,3749.3,0.001]
[1753506126153,6.19141421,3749.4,3749.3,0.001]
[1753506128249,6.64671421,3749.4,3749.3,0.001]
[1753506128451,7.8676109,3749.4,3749.3,0.001]
[1753506128650,7.12401421,3749.4,3749.3,0.001]
[1753506129138,8.60941421,3749.4,3749.3,0.001]
[1753506129342,10.31131421,3749.4,3749.3,0.001]
[1753506129648,9.9205934,3749.4,3749.3,0.001]
[1753506129863,10.31122277,3749.4,3749.3,0.001]
[1753506130223,9.9205934,3749.4,3749.3,0.001]
[1753506132735,2.66760906,3748.7,3748.5,0.001]
[1753506132933,5.66760906,3748.7,3748.6,0.4537]
[1753506133148,5.80120906,3748.7,3748.6,0.4537]
[1753506140067,5.66766259,3748.6,3748.5,0.001]
[1753506140461,5.66766259,3748.6,3748.5,0.4599]
[1753506142382,5.66766259,3748.6,3748.5,0.001]
[1753506142868,6.09526259,3748.6,3748.5,0.001]
[1753506143043,8.51426259,3748.6,3748.5,0.001]
[1753506143240,10.01842893,3748.6,3748.5,0.001]
[1753506144375,8.33782893,3748.6,3748.5,0.4599]
[1753506145271,5.91682893,3748.6,3748.5,0.4599]
[1753506145455,5.91682893,3748.6,3748.5,0.914]
[1753506145456,8.33782893,3748.6,3748.5,0.914]
[1753506145656,8.33782893,3748.6,3748.5,0.4599]
[1753506146492,5.91682893,3748.6,3748.5,0.4599]
[1753506146675,5.66766259,3748.6,3748.5,0.4599]
[1753506146893,8.08866259,3748.6,3748.5,0.914]
[1753506147864,8.08866259,3748.6,3748.5,0.4599]
[1753506148067,9.17764106,3748.6,3748.5,0.4599]
[1753506148456,9.17764106,3748.6,3748.5,0.001]
[1753506148672,7.18424106,3748.6,3748.5,0.001]
[1753506149348,7.66054106,3748.6,3748.5,0.001]
[1753506149543,7.18424106,3748.6,3748.5,0.001]
[1753506149779,6.75664106,3748.6,3748.5,0.001]
[1753506149984,6.89606746,3748.6,3748.5,0.001]
[1753506150591,6.89606746,3748.6,3748.5,0.4599]
[1753506150791,6.89606746,3748.6,3748.5,0.001]
[1753506151100,7.32366746,3748.6,3748.5,0.001]
[1753506152777,7.79996746,3748.6,3748.5,0.001]
[1753506155047,7.32366746,3748.6,3748.5,0.001]
[1753506155568,7.79996746,3748.6,3748.5,0.001]
[1753506155879,8.60226746,3748.6,3748.5,0.001]
[1753506159781,5.66816083,3747.9,3747.8,0.001]
[1753506159972,8.09016083,3747.9,3747.8,0.001]
[1753506160172,8.37398687,3747.9,3747.8,0.4599]
[1753506161902,8.37398687,3747.9,3747.8,0.001]
[1753506162205,13.02045133,3747.9,3747.8,0.001]